lending/lending_fUSD_20240219
["ID","MTS","AMOUNT","RATE_DAILY","PERIOD"]
[314463473,1708368647424,-549.4854619,0.00046575,30]
[314463474,1708368647433,-500.0,0.00046575,30]
[314463475,1708368647524,-500.0,0.00046575,30]
[314463476,1708368647534,-982.5,0.00046575,30]
[314463477,1708368647543,-520.47943312,0.00046575,30]
[314463478,1708368647553,-500.0,0.00046575,30]
[314463479,1708368647562,-500.0,0.00046575,30]
[314463480,1708368647571,-500.0,0.00046575,30]
[314463481,1708368647580,-500.0,0.00046575,30]
[314463482,1708368647589,-500.0,0.00046575,30]
[314463483,1708368647598,-638.02,0.00046575,30]
[314463484,1708368647608,-882.05,0.00046575,30]
[314463485,1708368647617,-500.0,0.00046575,30]
[314463486,1708368647626,-559.02,0.00046575,30]
[314463487,1708368647636,-558.64807143,0.00046575,30]
[314463488,1708368647645,-152.79203214,0.00046575,30]
[314463489,1708368647654,-500.0,0.00046575,30]
[314463490,1708368647663,-172.11057072,0.00046575,30]
[314463491,1708368647672,-797.72,0.00046575,30]
[314463492,1708368647682,-857.59,0.00046575,30]
[314463493,1708368647692,-500.0,0.00046575,30]
[314463494,1708368647701,-500.0,0.00046575,30]
[314463495,1708368647711,-500.0,0.00046575,30]
[314463496,1708368647720,-500.0,0.00046575,30]
[314463497,1708368647730,-500.0,0.00046575,30]
[314463498,1708368647740,-500.0,0.00046575,30]
[314463499,1708368647750,-500.0,0.00046575,30]
[314463500,1708368647759,-542.70690448,0.00046575,30]
[314463501,1708368647769,-500.0,0.00046575,30]
[314463502,1708368647778,-500.0,0.00046575,30]
[314463503,1708368647787,-839.61,0.00046575,30]
[314463504,1708368647797,-500.0,0.00046575,30]
[314463505,1708368647806,-259.36681562,0.00046575,30]
[314463506,1708368647815,-8955.72,0.00046575,30]
[314463507,1708368647824,-500.0,0.00046575,30]
[314463508,1708368647834,-500.0,0.00046575,30]
[314463509,1708368647843,-500.0,0.00046575,30]
[314463510,1708368647852,-500.0,0.00046575,30]
[314463511,1708368647861,-541.29,0.00046575,30]
[314463512,1708368647870,-821.18,0.00046575,30]
[314463513,1708368647880,-500.0,0.00046575,30]
[314463514,1708368647889,-500.0,0.00046575,30]
[314463515,1708368647898,-329.9766712,0.00046575,30]
[314463516,1708368647907,-908.51,0.00046575,30]
[314463517,1708368647916,-8677.61,0.00046575,30]
[314463518,1708368647925,-506.77,0.00046575,30]
[314463519,1708368647934,-500.0,0.00046575,30]
[314463520,1708368647944,-500.0,0.00046575,30]
[314463521,1708368647953,-500.0,0.00046575,30]
[314463522,1708368647962,-1202.54,0.00046575,30]
[314463523,1708368647971,-500.0,0.00046575,30]
[314463524,1708368647980,-832.18,0.00046575,30]
[314463525,1708368647994,-749.86,0.00046575,30]
[314463526,1708368648003,-500.0,0.00046575,30]
[314463527,1708368648013,-500.0,0.00046575,30]
[314463528,1708368648021,-692.69,0.00046575,30]
[314463529,1708368648032,-500.0,0.00046575,30]
[314463530,1708368648041,-250.0,0.00046575,30]
[314463531,1708368648050,-500.0,0.00046575,30]
[314463532,1708368648060,-500.0,0.00046575,30]
[314463533,1708368648072,-583.47,0.00046575,30]
[314463534,1708368648082,-963.02,0.00046575,30]
[314463535,1708368648091,-500.0,0.00046575,30]
[314463536,1708368648101,-500.0,0.00046575,30]
[314463537,1708368648110,-1000.0,0.00046575,7]
[314463538,1708368648119,-500.0,0.00046575,30]
[314463539,1708368648130,-500.0,0.00046575,30]
[314463540,1708368648139,-500.0,0.00046575,30]
[314463541,1708368648148,-379.70325178,0.00046575,30]
[314463542,1708368648157,-500.0,0.00046575,30]
[314463543,1708368648166,-500.0,0.00046575,30]
[314463544,1708368648175,-500.0,0.00046575,30]
[314463545,1708368648188,-500.0,0.00046575,30]
[314463546,1708368648197,-604.89,0.00046575,30]
[314463547,1708368648206,-500.0,0.00046575,7]
[314463548,1708368648215,-762.37,0.00046575,30]
[314463549,1708368648225,-774.78,0.00046575,30]
[314463550,1708368648235,-500.0,0.00046575,30]
[314463551,1708368648244,-500.0,0.00046575,30]
[314463552,1708368648253,-500.0,0.00046575,30]
[314463553,1708368648263,-569.35,0.00046575,30]
[314463554,1708368648272,-500.0,0.00046575,30]
[314463555,1708368648282,-500.0,0.00046575,30]
[314463556,1708368648291,-500.0,0.00046575,30]
[314463557,1708368648301,-500.0,0.00046575,30]
[314463558,1708368648310,-873.98,0.00046575,30]
[314463559,1708368648319,-500.0,0.00046575,30]
[314463560,1708368648328,-500.0,0.00046575,30]
[314463561,1708368648338,-500.0,0.00046575,30]
[314463562,1708368648347,-718.47,0.00046575,30]
[314463563,1708368648357,-503.14186291,0.00046575,30]
[314463564,1708368648366,-500.0,0.00046575,30]
[314463565,1708368648374,-705.46,0.00046575,30]
[314463566,1708368648384,-500.0,0.00046575,30]
[314463567,1708368648393,-570.87,0.00046575,30]
[314463568,1708368648402,-500.0,0.00046575,30]
[314463569,1708368648414,-500.0,0.00046575,30]
[314463570,1708368648423,-500.0,0.00046575,30]
[314463571,1708368648432,-776.31,0.00046575,30]
[314463572,1708368648441,-607.54,0.00046575,30]
[314463573,1708368648451,-500.0,0.00046575,2]
[314463574,1708368648460,-500.0,0.00046575,30]
[314463575,1708368648470,-500.0,0.00046575,30]
[314463576,1708368648480,-221.82,0.00046575,30]
[314463577,1708368648490,-500.0,0.00046575,30]
[314463578,1708368648499,-700.1,0.00046575,30]
[314463579,1708368648509,-500.0,0.00046575,30]
[314463580,1708368648518,-507.93,0.00046575,30]
[314463581,1708368648527,-500.0,0.00046575,30]
[314463582,1708368648536,-500.0,0.00046575,30]
[314463583,1708368648546,-500.0,0.00046575,30]
[314463584,1708368648555,-844.56,0.00046575,30]
[314463585,1708368648565,-500.0,0.00046575,30]
[314463586,1708368648574,-517.84460286,0.00046575,30]
[314463587,1708368648583,-500.0,0.00046575,30]
[314463588,1708368648593,-507.06470108,0.00046575,30]
[314463589,1708368648602,-500.0,0.00046575,30]
[314463590,1708368648611,-500.0,0.00046575,30]
[314463591,1708368648621,-319.93855535,0.00046575,30]
[314463592,1708368648631,-500.0,0.00046575,30]
[314463593,1708368648640,-922.75,0.00046575,30]
[314463594,1708368648649,-700.59,0.00046575,30]
[314463595,1708368648658,-500.0,0.00046575,30]
[314463596,1708368648667,-435.44908939,0.00046575,30]
[314463597,1708368648676,-500.0,0.00046575,30]
[314463598,1708368648685,-500.0,0.00046575,30]
[314463599,1708368648694,-500.0,0.00046575,30]
[314463600,1708368648703,-565.13,0.00046575,30]
[314463601,1708368648712,-852.32,0.00046575,30]
[314463602,1708368648721,-500.0,0.00046575,30]
[314463603,1708368648731,-500.0,0.00046575,30]
[314463604,1708368648741,-500.0,0.00046575,30]
[314463605,1708368648751,-1633.83,0.00046575,30]
[314463606,1708368648760,-465.62498886,0.00046575,30]
[314463607,1708368648770,-500.0,0.00046575,30]
[314463608,1708368648779,-624.86,0.00046575,30]
[314463609,1708368648789,-500.0,0.00046575,30]
[314463610,1708368648798,-500.0,0.00046575,30]
[314463611,1708368648808,-500.0,0.00046575,30]
[314463612,1708368648817,-500.0,0.00046575,30]
[314463613,1708368648826,-500.0,0.00046575,30]
[314463614,1708368648837,-968.85,0.00046575,30]
[314463615,1708368648846,-611.12,0.00046575,30]
[314463616,1708368648856,-681.41,0.00046575,30]
[314463617,1708368648865,-500.0,0.00046575,30]
[314463618,1708368648875,-500.0,0.00046575,30]
[314463619,1708368648884,-500.0,0.00046575,30]
[314463620,1708368648893,-2749.08,0.00046575,30]
[314463621,1708368648902,-500.0,0.00046575,30]
[314463622,1708368648911,-500.0,0.00046575,30]
[314463623,1708368648921,-500.0,0.00046575,30]
[314463624,1708368648931,-556.74705613,0.00046575,30]
[314463625,1708368648940,-500.0,0.00046575,30]
[314463626,1708368648950,-500.0,0.00046575,30]
[314463627,1708368648959,-500.0,0.00046575,30]
[314463628,1708368648969,-611.62764244,0.00046575,30]
[314463629,1708368648979,-514.57,0.00046575,30]
[314463630,1708368648990,-1193.23,0.00046575,30]
[314463631,1708368648999,-500.0,0.00046575,30]
[314463632,1708368649011,-500.0,0.00046575,30]
[314463633,1708368649020,-500.0,0.00046575,30]
[314463634,1708368649030,-500.0,0.00046575,30]
[314463635,1708368649040,-500.0,0.00046575,30]
[314463636,1708368649049,-788.3,0.00046575,30]
[314463637,1708368649058,-500.0,0.00046575,30]
[314463638,1708368649068,-500.0,0.00046575,30]
[314463639,1708368649077,-759.41,0.00046575,30]
[314463640,1708368649087,-500.0,0.00046575,30]
[314463641,1708368649096,-1897.02,0.00046575,30]
[314463642,1708368649106,-774.5,0.00046575,30]
[314463643,1708368649115,-959.63,0.00046575,30]
[314463644,1708368649125,-728.15,0.00046575,30]
[314463645,1708368649134,-500.0,0.00046575,30]
[314463646,1708368649143,-695.7,0.00046575,30]
[314463647,1708368649153,-591.83,0.00046575,30]
[314463648,1708368649162,-500.0,0.00046575,30]
[314463649,1708368649171,-1002.89,0.00046575,30]
[314463650,1708368649180,-2303.4,0.00046575,30]
[314463651,1708368649190,-500.0,0.00046575,30]
[314463652,1708368649198,-616.96,0.00046575,30]
[314463653,1708368649207,-500.0,0.00046575,30]
[314463654,1708368649217,-500.0,0.00046575,30]
[314463655,1708368649227,-667.62,0.00046575,30]
[314463656,1708368649235,-656.24,0.00046575,30]
[314463657,1708368649245,-500.0,0.00046575,30]
[314463658,1708368649254,-1370.62,0.00046575,30]
[314463659,1708368649263,-1953.3,0.00046575,30]
[314463660,1708368649273,-500.0,0.00046575,30]
[314463661,1708368649282,-500.0,0.00046575,30]
[314463662,1708368649292,-993.04,0.00046575,30]
[314463663,1708368649301,-500.0,0.00046575,30]
[314463664,1708368649310,-500.0,0.00046575,30]
[314463665,1708368649320,-500.0,0.00046575,30]
[314463666,1708368649329,-500.0,0.00046575,30]
[314463667,1708368649338,-2363.16,0.00046575,30]
[314463668,1708368649347,-731.75,0.00046575,30]
[314463669,1708368649357,-511.68,0.00046575,30]
[314463670,1708368649366,-500.0,0.00046575,30]
[314463671,1708368649376,-838.61,0.00046575,30]
[314463672,1708368649387,-500.0,0.00046575,30]
[314463673,1708368649396,-500.0,0.00046575,30]
[314463674,1708368649407,-574.99,0.00046575,30]
[314463675,1708368649417,-878.47,0.00046575,30]
[314463676,1708368649427,-500.0,0.00046575,30]
[314463677,1708368649437,-500.0,0.00046575,2]
[314463678,1708368649446,-856.47,0.00046575,30]
[314463679,1708368649456,-500.0,0.00046575,30]
[314463680,1708368649465,-500.0,0.00046575,30]
[314463681,1708368649475,-500.0,0.00046575,30]
[314463682,1708368649485,-500.0,0.00046575,30]
[314463683,1708368649494,-500.0,0.00046575,30]
[314463684,1708368649503,-500.0,0.00046575,30]
[314463685,1708368649513,-500.0,0.00046575,30]
[314463686,1708368649523,-500.0,0.00046575,30]
[314463687,1708368649533,-500.0,0.00046575,30]
[314463688,1708368649543,-1051.99,0.00046575,30]
[314463689,1708368649553,-500.0,0.00046575,30]
[314463690,1708368649562,-500.0,0.00046575,30]
[314463691,1708368649572,-526.88469196,0.00046575,30]
[314463692,1708368649582,-653.29,0.00046575,30]
[314463693,1708368649592,-500.0,0.00046575,30]
[314463694,1708368649602,-865.45,0.00046575,30]
[314463695,1708368649611,-500.0,0.00046575,30]
[314463696,1708368649621,-500.0,0.00046575,30]
[314463697,1708368649631,-579.34,0.00046575,30]
[314463698,1708368649641,-500.0,0.00046575,30]
[314463699,1708368649650,-500.0,0.00046575,30]
[314463700,1708368649660,-500.0,0.00046575,30]
[314463701,1708368649669,-500.0,0.00046575,30]
[314463702,1708368649680,-500.0,0.00046575,30]
[314463703,1708368649690,-1080.33,0.00046575,30]
[314463704,1708368649700,-500.0,0.00046575,30]
[314463705,1708368649709,-500.0,0.00046575,30]
[314463706,1708368649719,-886.97,0.00046575,30]
[314463707,1708368649730,-500.0,0.00046575,30]
[314463708,1708368649740,-500.0,0.00046575,30]
[314463709,1708368649750,-500.0,0.00046575,30]
[314463710,1708368649760,-500.0,0.00046575,30]
[314463711,1708368649769,-529.55705882,0.00046575,30]
[314463712,1708368649779,-506.91,0.00046575,30]
[314463713,1708368649789,-1000.0,0.00046575,7]
[314463714,1708368649799,-932.3,0.00046575,30]
[314463715,1708368649809,-405.93198236,0.00046575,30]
[314463716,1708368649819,-872.65,0.00046575,30]
[314463717,1708368649828,-500.0,0.00046575,30]
[314463718,1708368649838,-500.0,0.00046575,30]
[314463719,1708368649847,-500.0,0.00046575,30]
[314463720,1708368649857,-500.0,0.00046575,30]
[314463721,1708368649868,-608.78,0.00046575,2]
[314463722,1708368649877,-552.08,0.00046575,30]
[314463723,1708368649887,-500.0,0.00046575,30]
[314463724,1708368649897,-500.0,0.00046575,30]
[314463725,1708368649907,-500.0,0.00046575,30]
[314463726,1708368649916,-500.0,0.00046575,30]
[314463727,1708368649926,-500.0,0.00046575,30]
[314463728,1708368649936,-975.9,0.00046575,30]
[314463729,1708368649946,-500.0,0.00046575,30]
[314463730,1708368649956,-500.0,0.00046575,30]
[314463731,1708368649966,-500.0,0.00046575,30]
[314463732,1708368649975,-692.97,0.00046575,30]
[314463733,1708368649986,-1172.94,0.00046575,30]
[314463734,1708368650000,-500.0,0.00046575,30]
[314463735,1708368650010,-1027.4,0.00046575,30]
[314463736,1708368650020,-634.19,0.00046575,30]
[314463737,1708368650030,-500.0,0.00046575,30]
[314463738,1708368650042,-953.8,0.00046575,30]
[314463739,1708368650052,-500.0,0.00046575,30]
[314463740,1708368650062,-500.0,0.00046575,30]
[314463741,1708368650073,-500.0,0.00046575,30]
[314463742,1708368650083,-513.08352303,0.00046575,30]
[314463743,1708368650093,-500.0,0.00046575,30]
[314463744,1708368650102,-500.0,0.00046575,30]
[314463745,1708368650112,-1332.29,0.00046575,30]
[314463746,1708368650121,-500.0,0.00046575,30]
[314463747,1708368650130,-1821.58,0.00046575,30]
[314463748,1708368650140,-500.0,0.00046575,30]
[314463749,1708368650149,-500.0,0.00046575,30]
[314463750,1708368650158,-500.0,0.00046575,30]
[314463751,1708368650168,-834.88,0.00046575,30]
[314463752,1708368650177,-595.56,0.00046575,30]
[314463753,1708368650218,-721.89,0.00046575,30]
[314463754,1708368650228,-602.03235956,0.00046575,30]
[314463755,1708368650239,-500.0,0.00046575,30]
[314463756,1708368650249,-500.0,0.00046575,30]
[314463757,1708368650259,-1691.82,0.00046575,30]
[314463758,1708368650269,-500.0,0.00046575,30]
[314463759,1708368650279,-500.0,0.00046575,30]
[314463760,1708368650289,-776.62,0.00046575,30]
[314463761,1708368650299,-500.0,0.00046575,30]
[314463762,1708368650309,-2325.88,0.00046575,30]
[314463763,1708368650323,-500.0,0.00046575,30]
[314463764,1708368650333,-500.0,0.00046575,30]
[314463765,1708368650343,-542.42,0.00046575,30]
[314463766,1708368650354,-500.0,0.00046575,30]
[314463767,1708368650368,-500.0,0.00046575,30]
[314463768,1708368650378,-500.0,0.00046575,30]
[314463769,1708368650388,-500.0,0.00046575,30]
[314463770,1708368650398,-727.95,0.00046575,30]
[314463771,1708368650408,-2218.71,0.00046575,30]
[314463772,1708368650417,-767.32,0.00046575,30]
[314463773,1708368650427,-500.0,0.00046575,30]
[314463774,1708368650437,-500.0,0.00046575,30]
[314463775,1708368650447,-500.0,0.00046575,30]
[314463776,1708368650457,-1241.04,0.00046575,30]
[314463777,1708368650466,-500.0,0.00046575,30]
[314463778,1708368650476,-500.0,0.00046575,30]
[314463779,1708368650487,-879.92,0.00046575,30]
[314463780,1708368650497,-500.0,0.00046575,30]
[314463781,1708368650507,-500.0,0.00046575,30]
[314463782,1708368650517,-500.0,0.00046575,30]
[314463783,1708368650527,-500.0,0.00046575,30]
[314463784,1708368650537,-500.0,0.00046575,30]
[314463785,1708368650546,-809.49,0.00046575,30]
[314463786,1708368650556,-1201.08,0.00046575,30]
[314463787,1708368650566,-500.0,0.00046575,30]
[314463788,1708368650577,-228.76,0.00046575,30]
[314463789,1708368650588,-500.0,0.00046575,30]
[314463790,1708368650598,-1945.84,0.00046575,30]
[314463791,1708368650609,-500.0,0.00046575,30]
[314463792,1708368650618,-500.0,0.00046575,30]
[314463793,1708368650628,-500.0,0.00046575,30]
[314463794,1708368650638,-500.0,0.00046575,30]
[314463795,1708368650648,-500.0,0.00046575,30]
[314463796,1708368650657,-734.92,0.00046575,30]
[314463797,1708368650667,-500.0,0.00046575,30]
[314463798,1708368650677,-8336.83,0.00046575,30]
[314463799,1708368650686,-2407.85,0.00046575,30]
[314463800,1708368650697,-503.0,0.00046575,30]
[314463801,1708368650707,-500.0,0.00046575,30]
[314463802,1708368650717,-500.0,0.00046575,30]
[314463803,1708368650730,-500.0,0.00046575,30]
[314463804,1708368650740,-402.89939423,0.00046575,30]
[314463805,1708368650750,-500.0,0.00046575,30]
[314463806,1708368650761,-518.6156913,0.00046575,30]
[314463807,1708368650771,-500.0,0.00046575,30]
[314463808,1708368650781,-500.0,0.00046575,30]
[314463809,1708368650793,-500.0,0.00046575,30]
[314463810,1708368650803,-500.0,0.00046575,30]
[314463811,1708368650813,-782.99,0.00046575,30]
[314463812,1708368650822,-1574.66,0.00046575,30]
[314463813,1708368650832,-282.96418311,0.00046575,30]
[314463814,1708368650842,-2196.04,0.00046575,30]
[314463815,1708368650852,-374.72,0.00046575,30]
[314463816,1708368650862,-512.37310732,0.00046575,30]
[314463817,1708368650872,-500.0,0.00046575,30]
[314463818,1708368650882,-500.0,0.00046575,30]
[314463819,1708368650892,-500.0,0.00046575,30]
[314463820,1708368650902,-904.27,0.00046575,30]
[314463821,1708368650912,-500.0,0.00046575,30]
[314463822,1708368650923,-517.41496495,0.00046575,30]
[314463823,1708368650933,-500.0,0.00046575,30]
[314463824,1708368650943,-500.0,0.00046575,30]
[314463825,1708368650953,-1250.14,0.00046575,30]
[314463826,1708368650963,-500.0,0.00046575,30]
[314463827,1708368650973,-579.16,0.00046575,30]
[314463828,1708368650984,-716.18,0.00046575,30]
[314463829,1708368650995,-5136.62,0.00046575,30]
[314463830,1708368651006,-1860.24,0.00046575,30]
[314463831,1708368651018,-2296.53,0.00046575,30]
[314463832,1708368651027,-500.0,0.00046575,30]
[314463833,1708368651037,-500.0,0.00046575,30]
[314463834,1708368651048,-575.6,0.00046575,30]
[314463835,1708368651058,-500.0,0.00046575,30]
[314463836,1708368651068,-500.0,0.00046575,30]
[314463837,1708368651078,-500.0,0.00046575,30]
[314463838,1708368651089,-500.0,0.00046575,30]
[314463839,1708368651099,-500.0,0.00046575,30]
[314463840,1708368651109,-500.0,0.00046575,30]
[314463841,1708368651118,-500.0,0.00046575,30]
[314463842,1708368651128,-1193.79,0.00046575,30]
[314463843,1708368651137,-500.0,0.00046575,30]
[314463844,1708368651146,-2582.22,0.00046575,30]
[314463845,1708368651156,-500.0,0.00046575,30]
[314463846,1708368651166,-1663.17,0.00046575,30]
[314463847,1708368651176,-500.0,0.00046575,30]
[314463848,1708368651185,-500.0,0.00046575,30]
[314463849,1708368651196,-500.0,0.00046575,30]
[314463850,1708368651205,-500.0,0.00046575,30]
[314463851,1708368651215,-2699.75,0.00046575,30]
[314463852,1708368651225,-500.0,0.00046575,30]
[314463853,1708368651236,-500.0,0.00046575,30]
[314463854,1708368651246,-500.0,0.00046575,30]
[314463855,1708368651256,-500.0,0.00046575,30]
[314463856,1708368651266,-500.0,0.00046575,30]
[314463857,1708368651275,-1233.49,0.00046575,30]
[314463858,1708368651285,-512.49843921,0.00046575,30]
[314463859,1708368651295,-2570.88,0.00046575,30]
[314463860,1708368651305,-1807.88,0.00046575,30]
[314463861,1708368651314,-500.0,0.00046575,30]
[314463862,1708368651324,-642.64,0.00046575,30]
[314463863,1708368651334,-500.0,0.00046575,30]
[314463864,1708368651344,-500.0,0.00046575,30]
[314463865,1708368651353,-500.0,0.00046575,30]
[314463866,1708368651363,-2069.93,0.00046575,30]
[314463867,1708368651373,-500.0,0.00046575,30]
[314463868,1708368651383,-1233.0,0.00046575,30]
[314463869,1708368651392,-500.0,0.00046575,30]
[314463870,1708368651402,-855.12,0.00046575,30]
[314463871,1708368651415,-597.55,0.00046575,30]
[314463872,1708368651426,-500.0,0.00046575,30]
[314463873,1708368651436,-500.0,0.00046575,30]
[314463874,1708368651446,-500.0,0.00046575,30]
[314463875,1708368651456,-1715.92,0.00046575,30]
[314463876,1708368651467,-500.0,0.00046575,30]
[314463877,1708368651477,-926.75,0.00046575,30]
[314463878,1708368651489,-500.0,0.00046575,30]
[314463879,1708368651499,-500.0,0.00046575,30]
[314463880,1708368651509,-500.0,0.00046575,30]
[314463881,1708368651519,-2378.68,0.00046575,30]
[314463882,1708368651529,-3458.75,0.00046575,30]
[314463883,1708368651539,-500.0,0.00046575,30]
[314463884,1708368651549,-734.17,0.00046575,30]
[314463885,1708368651559,-500.0,0.00046575,30]
[314463886,1708368651569,-1054.76,0.00046575,30]
[314463887,1708368651579,-919.86,0.00046575,30]
[314463888,1708368651589,-2773.68,0.00046575,30]
[314463889,1708368651599,-518.70288141,0.00046575,30]
[314463890,1708368651609,-273.3703245,0.00046575,30]
[314463891,1708368651619,-1132.55,0.00046575,30]
[314463892,1708368651629,-500.0,0.00046575,30]
[314463893,1708368651847,-2204.57,0.00046575,30]
[314463894,1708368651857,-500.0,0.00046575,30]
[314463895,1708368651867,-500.0,0.00046575,30]
[314463896,1708368651877,-1178.43,0.00046575,30]
[314463897,1708368651887,-500.0,0.00046575,30]
[314463898,1708368651897,-526.22959529,0.00046575,30]
[314463899,1708368651908,-500.0,0.00046575,30]
[314463900,1708368651917,-2482.83,0.00046575,30]
[314463901,1708368651927,-3035.21,0.00046575,30]
[314463902,1708368651937,-959.71,0.00046575,30]
[314463903,1708368651947,-2643.7,0.00046575,30]
[314463904,1708368651957,-500.0,0.00046575,30]
[314463905,1708368651967,-500.0,0.00046575,30]
[314463906,1708368651978,-2146.58,0.00046575,30]
[314463907,1708368651996,-588.15,0.00046575,30]
[314463908,1708368652007,-500.0,0.00046575,30]
[314463909,1708368652018,-1142.71,0.00046575,30]
[314463910,1708368652029,-3544.33,0.00046575,30]
[314463911,1708368652040,-2201.17,0.00046575,30]
[314463912,1708368652051,-500.0,0.00046575,30]
[314463913,1708368652061,-500.0,0.00046575,30]
[314463914,1708368652071,-500.0,0.00046575,30]
[314463915,1708368652081,-1017.55,0.00046575,30]
[314463916,1708368652092,-500.0,0.00046575,30]
[314463917,1708368652103,-500.0,0.00046575,30]
[314463918,1708368652113,-2111.83,0.00046575,30]
[314463919,1708368652122,-500.0,0.00046575,30]
[314463920,1708368652132,-500.0,0.00046575,30]
[314463921,1708368652142,-500.0,0.00046575,30]
[314463922,1708368652151,-3085.25,0.00046575,30]
[314463923,1708368652161,-500.0,0.00046575,30]
[314463924,1708368652171,-500.0,0.00046575,30]
[314463925,1708368652180,-500.0,0.00046575,30]
[314463926,1708368652190,-5530.2,0.00046575,30]
[314463927,1708368652200,-500.0,0.00046575,30]
[314463928,1708368652210,-3482.75,0.00046575,30]
[314463929,1708368652219,-500.0,0.00046575,30]
[314463930,1708368652229,-1036.78,0.00046575,30]
[314463931,1708368652240,-500.0,0.00046575,30]
[314463932,1708368652249,-1201.09,0.00046575,30]
[314463933,1708368652259,-500.0,0.00046575,30]
[314463934,1708368652269,-500.0,0.00046575,30]
[314463935,1708368652278,-500.0,0.00046575,30]
[314463936,1708368652288,-500.0,0.00046575,30]
[314463937,1708368652298,-500.0,0.00046575,30]
[314463938,1708368652307,-500.0,0.00046575,30]
[314463939,1708368652317,-500.0,0.00046575,30]
[314463940,1708368652326,-500.0,0.00046575,30]
[314463941,1708368652336,-2263.43,0.00046575,30]
[314463942,1708368652345,-3157.88,0.00046575,30]
[314463943,1708368652354,-500.0,0.00046575,30]
[314463944,1708368652366,-500.0,0.00046575,30]
[314463945,1708368652375,-500.0,0.00046575,30]
[314463946,1708368652385,-777.92,0.00046575,30]
[314463947,1708368652394,-1000.0,0.00046575,7]
[314463948,1708368652404,-2734.92,0.00046575,30]
[314463949,1708368652414,-500.0,0.00046575,30]
[314463950,1708368652424,-505.06,0.00046575,30]
[314463951,1708368652433,-500.0,0.00046575,30]
[314463952,1708368652443,-500.0,0.00046575,30]
[314463953,1708368652452,-551.4,0.00046575,30]
[314463954,1708368652461,-500.0,0.00046575,30]
[314463955,1708368652471,-500.0,0.00046575,30]
[314463956,1708368652481,-500.0,0.00046575,30]
[314463957,1708368652490,-2116.31,0.00046575,30]
[314463958,1708368652500,-1092.76,0.00046575,30]
[314463959,1708368652510,-1328.42,0.00046575,30]
[314463960,1708368652520,-853.08,0.00046575,30]
[314463961,1708368652530,-1138.96,0.00046575,30]
[314463962,1708368652539,-500.0,0.00046575,30]
[314463963,1708368652549,-500.0,0.00046575,30]
[314463964,1708368652558,-500.0,0.00046575,30]
[314463965,1708368652568,-500.0,0.00046575,30]
[314463966,1708368652577,-500.0,0.00046575,30]
[314463967,1708368652587,-1906.31,0.00046575,30]
[314463968,1708368652597,-500.0,0.00046575,30]
[314463969,1708368652607,-500.0,0.00046575,30]
[314463970,1708368652617,-500.0,0.00046575,30]
[314463971,1708368652628,-912.3,0.00046575,30]
[314463972,1708368652638,-500.0,0.00046575,30]